bitfinex-derivatives/quotes_BTCF0:USTF0_20220102
["timestamp","ask_amount","ask_price","bid_price","bid_amount"]
[1641083348772,0.59480603,47544.0,47539.0,0.21403561]
[1641083348975,0.49709384,47546.0,47539.0,0.21403561]
[1641083349574,0.49709384,47546.0,47539.0,0.02103561]
[1641083349774,0.35675817,47545.0,47539.0,0.02103561]
[1641083350373,0.35675817,47545.0,47539.0,0.20803561]
[1641083351676,0.35675817,47545.0,47539.0,0.02103561]
[1641083352277,0.35675817,47545.0,47539.0,0.20603561]
[1641083353578,0.35675817,47545.0,47539.0,0.02103561]
[1641083354281,0.18,47544.0,47539.0,0.20703561]
[1641083354482,0.53675817,47544.0,47539.0,0.20703561]
[1641083355586,0.53675817,47544.0,47539.0,0.02103561]
[1641083356288,0.53675817,47544.0,47539.0,0.20803561]
[1641083356589,0.18,47544.0,47539.0,0.20803561]
[1641083357690,0.49709384,47546.0,47539.0,0.20803561]
[1641083358288,0.49709384,47546.0,47539.0,0.39403561]
[1641083358889,0.14033567,47546.0,47539.0,0.39403561]
[1641083359289,0.32033567,47546.0,47539.0,0.39403561]
[1641083359489,0.67709384,47546.0,47539.0,0.39403561]
[1641083359688,0.67709384,47546.0,47539.0,0.02103561]
[1641083360189,0.67709384,47546.0,47539.0,0.20303561]
[1641083361795,0.67709384,47546.0,47539.0,0.02103561]
[1641083362192,0.67709384,47546.0,47539.0,0.20303561]
[1641083363510,0.32033567,47546.0,47539.0,0.20303561]
[1641083363711,0.32033567,47546.0,47539.0,0.02103561]
[1641083364210,0.32033567,47546.0,47539.0,0.20303561]
[1641083365713,0.32033567,47546.0,47539.0,0.02103561]
[1641083366014,0.14033567,47546.0,47539.0,0.02103561]
[1641083366213,0.14033567,47546.0,47539.0,0.20303561]
[1641083367213,0.18,47545.0,47539.0,0.20303561]
[1641083367613,0.18,47545.0,47539.0,0.02103561]
[1641083367813,0.14033567,47546.0,47539.0,0.02103561]
[1641083368014,0.18,47545.0,47539.0,0.02103561]
[1641083368213,0.18,47545.0,47539.0,0.20703561]
[1641083368514,0.14033567,47546.0,47539.0,0.20703561]
[1641083369616,0.14033567,47546.0,47539.0,0.02103561]
[1641083370015,0.35675817,47547.0,47545.0,0.02103018]
[1641083370217,0.35675817,47547.0,47546.0,0.18]
[1641083370417,0.35675817,47547.0,47546.0,0.16136243]
[1641083371017,0.35675817,47547.0,47546.0,0.16236243]
[1641083371215,0.35675817,47547.0,47546.0,0.16136243]
[1641083371417,0.35675817,47547.0,47546.0,0.16236243]
[1641083371715,0.02,47550.0,47546.0,0.16236243]
[1641083371916,0.02,47550.0,47546.0,0.16136243]
[1641083372316,0.02,47550.0,47546.0,0.35136243]
[1641083372616,0.02,47550.0,47546.0,0.94105953]
[1641083373416,0.02,47550.0,47546.0,0.35136243]
[1641083374115,0.02,47550.0,47546.0,0.16136243]
[1641083374316,0.02,47550.0,47546.0,0.35136243]
[1641083375016,0.18,47547.0,47543.0,0.5896971]
[1641083375216,0.18,47547.0,47542.0,0.5896971]
[1641083375217,0.18,47544.0,47542.0,0.5896971]
[1641083375416,0.009794,47543.0,47538.0,1.18200786]
[1641083375617,0.44900544,47539.0,47538.0,1.18200786]
[1641083376217,0.63600544,47539.0,47538.0,1.18200786]
[1641083376518,0.63600544,47539.0,47535.0,0.73226633]
[1641083376718,0.18,47536.0,47535.0,0.73226633]
[1641083377322,0.18,47536.0,47535.0,0.14033567]
[1641083378321,0.366,47536.0,47535.0,0.14033567]
[1641083378818,0.366,47536.0,47529.0,0.02103983]
[1641083379019,0.18,47532.0,47529.0,0.02103983]
[1641083379527,0.18,47533.0,47529.0,0.02103983]
[1641083380121,0.18,47536.0,47529.0,0.02103983]
[1641083380322,0.367,47533.0,47529.0,0.02103983]
[1641083381124,0.307,47533.0,47529.0,0.02103983]
[1641083381323,0.367,47533.0,47529.0,0.02103983]
[1641083381722,0.14033567,47536.0,47529.0,0.02103983]
[1641083381922,0.18,47534.0,47529.0,0.02103983]
[1641083382424,0.32833567,47536.0,47529.0,0.02103983]
[1641083384223,0.32533567,47536.0,47529.0,0.02103983]
[1641083385127,0.32533567,47536.0,47530.0,0.74490705]
[1641083385325,0.32533567,47536.0,47530.0,1.33852236]
[1641083385723,0.14033567,47536.0,47530.0,1.33852236]
[1641083386326,0.32733567,47536.0,47535.0,0.61465239]
[1641083386726,0.187,47536.0,47535.0,1.59465239]
[1641083387031,0.187,47536.0,47535.0,3.42252236]
[1641083387430,0.35675817,47538.0,47535.0,3.44355715]
[1641083387633,0.35675817,47538.0,47535.0,2.84994184]
[1641083387931,0.5967451,47539.0,47535.0,2.84994184]
[1641083388132,0.35675817,47543.0,47535.0,2.93314184]
[1641083388332,0.14,47538.0,47537.0,1.104]
[1641083388733,0.14,47538.0,47537.0,1.24433567]
[1641083389233,0.14,47538.0,47537.0,1.58174421]
[1641083389433,0.14,47538.0,47537.0,1.59469706]
[1641083389632,0.35675817,47545.0,47537.0,0.17332206]
[1641083390041,0.35675817,47545.0,47537.0,0.16136921]
[1641083390236,0.54475817,47545.0,47537.0,0.90627626]
[1641083390434,0.188,47545.0,47537.0,0.90627626]
[1641083391034,0.35675817,47544.0,47538.0,0.74490705]
[1641083392237,0.54575817,47544.0,47538.0,0.74490705]
[1641083392639,0.54575817,47544.0,47539.0,0.74490705]
[1641083393038,0.189,47544.0,47538.0,0.74490705]
[1641083393640,0.36655217,47547.0,47538.0,0.74490705]
[1641083394136,0.36655217,47547.0,47537.0,2.26157786]
[1641083394137,0.36655217,47547.0,47539.0,0.74490705]
[1641083394338,0.55555217,47547.0,47539.0,0.74490705]
[1641083394539,0.18,47546.0,47539.0,0.74490705]
[1641083394739,0.35675817,47541.0,47539.0,1.42002997]
[1641083395541,0.5967451,47543.0,47539.0,1.42002997]
[1641083395741,0.5967451,47540.0,47537.0,0.96136921]
[1641083396139,0.5967451,47540.0,47537.0,1.14136921]
[1641083396340,0.7807451,47540.0,47537.0,1.31336921]
[1641083396540,0.7807451,47540.0,47538.0,1.104]
[1641083396739,0.7807451,47540.0,47538.0,1.84890705]
[1641083396740,0.35866136,47539.0,47538.0,1.84890705]
[1641083396939,0.35866136,47539.0,47538.0,1.92532705]
[1641083397139,0.35866136,47539.0,47538.0,1.93828024]
[1641083397339,0.35866136,47539.0,47538.0,1.14971524]
[1641083397539,0.35866136,47539.0,47538.0,1.93728024]
[1641083397741,0.5967451,47541.0,47538.0,1.93728024]
[1641083397742,0.35866136,47542.0,47538.0,2.73529578]
[1641083397939,0.35866136,47542.0,47538.0,3.04911178]
[1641083398142,0.35866136,47542.0,47538.0,3.03715859]
[1641083398339,0.35866136,47542.0,47538.0,1.79734259]
[1641083398340,0.54166136,47542.0,47538.0,1.79734259]
[1641083398940,0.54166136,47542.0,47540.0,1.42605488]
[1641083399741,0.35866136,47542.0,47540.0,1.42605488]
[1641083400243,0.54566136,47542.0,47540.0,0.145]
[1641083400442,0.35866136,47541.0,47540.0,0.145]
[1641083400841,0.35866136,47541.0,47540.0,1.99390705]
[1641083401042,0.35866136,47541.0,47540.0,0.88990705]
[1641083401542,0.54566136,47542.0,47540.0,2.31596193]
[1641083402244,0.189794,47541.0,47533.0,1.53831787]
[1641083402442,0.18,47538.0,47533.0,1.53831787]
[1641083402844,0.14033567,47535.0,47533.0,1.53831787]
[1641083403045,0.14033567,47535.0,47534.0,0.001]
[1641083403247,0.22434567,47535.0,47534.0,0.001]
[1641083404347,0.41234567,47535.0,47534.0,0.001]
[1641083406349,0.41034567,47535.0,47534.0,0.001]
[1641083407650,0.22434567,47535.0,47534.0,0.001]
[1641083407852,0.14033567,47535.0,47534.0,0.001]
[1641083408254,0.32633567,47535.0,47534.0,0.001]
[1641083409655,0.14033567,47535.0,47534.0,0.001]
[1641083410053,0.49899703,47535.0,47534.0,0.001]
[1641083410255,0.68599703,47535.0,47534.0,1.19104585]
[1641083411257,0.68599703,47535.0,47534.0,0.001]
[1641083411455,0.32733567,47535.0,47534.0,0.001]
[1641083411654,0.14033567,47535.0,47534.0,0.001]
[1641083412268,0.68599703,47535.0,47534.0,1.18850972]
[1641083413668,0.49899703,47535.0,47534.0,1.18850972]
[1641083414268,0.68499703,47535.0,47534.0,1.18850972]
[1641083415474,0.32633567,47535.0,47534.0,1.18850972]
[1641083415671,0.14033567,47535.0,47534.0,1.18850972]
[1641083416371,0.32933567,47535.0,47534.0,1.18850972]
[1641083416873,0.32933567,47535.0,47534.0,0.001]
[1641083417673,0.14033567,47535.0,47534.0,0.001]
[1641083418076,0.14033567,47535.0,47534.0,0.57546443]
[1641083418274,0.33133567,47535.0,47534.0,0.57546443]
[1641083418874,0.68999703,47535.0,47534.0,0.57546443]
[1641083419578,0.52112967,47535.0,47532.0,0.32046937]
[1641083419778,0.18,47533.0,47524.0,1.53831787]
[1641083419978,0.18,47525.0,47524.0,1.53831787]
[1641083420980,0.18,47525.0,47518.0,1.53831787]
[1641083421180,0.14033567,47521.0,47518.0,1.53831787]
[1641083421379,0.14033567,47521.0,47520.0,0.001]
[1641083422380,0.92432891,47521.0,47513.0,0.18]
[1641083422580,0.92432891,47521.0,47520.0,0.0330011]
[1641083422787,0.92432891,47521.0,47520.0,0.0210437]
[1641083423181,0.92432891,47521.0,47520.0,0.0330011]
[1641083423480,0.32633567,47521.0,47520.0,0.0330011]
[1641083423681,0.14033567,47521.0,47520.0,0.0330011]
[1641083424281,0.59799324,47525.0,47520.0,0.0330011]
[1641083424483,0.182,47521.0,47520.0,0.0330011]
[1641083424783,0.182,47521.0,47520.0,1.1370011]
[1641083425683,0.59799324,47526.0,47520.0,1.1370011]
[1641083425883,0.59799324,47529.0,47520.0,1.1370011]
[1641083426084,0.59799324,47529.0,47521.0,1.1159574]
[1641083426287,0.59799324,47529.0,47522.0,0.0119574]
[1641083426485,0.78299324,47529.0,47522.0,0.0119574]
[1641083427285,0.78299324,47529.0,47525.0,1.4277834]
[1641083427686,0.59799324,47529.0,47525.0,1.4277834]
[1641083428486,0.77999324,47529.0,47525.0,1.4277834]
[1641083429489,0.59799324,47527.0,47523.0,1.4277834]
[1641083430492,0.78499324,47527.0,47523.0,1.4277834]
[1641083431296,0.78499324,47527.0,47522.0,1.4277834]
[1641083431495,0.59799324,47526.0,47522.0,1.4277834]
[1641083432496,0.78499324,47526.0,47522.0,1.4277834]
[1641083433897,0.18,47525.0,47522.0,1.4277834]
[1641083434497,0.367,47525.0,47522.0,1.4277834]
[1641083435498,0.96499324,47525.0,47521.0,1.86384746]
[1641083435698,0.78499324,47525.0,47521.0,1.86384746]
[1641083436106,0.78499324,47525.0,47522.0,0.56667516]
[1641083436505,0.97099324,47525.0,47523.0,0.01195661]
[1641083436705,0.97099324,47525.0,47524.0,0.0210401]
[1641083437305,0.373,47525.0,47524.0,0.0210401]
[1641083437905,0.59799324,47529.0,47524.0,0.0210401]
[1641083438106,0.35874533,47526.0,47524.0,1.88346631]
[1641083439107,0.35874533,47527.0,47525.0,0.43606406]
[1641083439805,0.35874533,47526.0,47525.0,0.43606406]
[1641083440404,0.54474533,47526.0,47525.0,0.43606406]
[1641083440607,0.72474533,47526.0,47525.0,0.43606406]
[1641083441207,0.366,47526.0,47525.0,0.43606406]
[1641083441807,0.18,47526.0,47525.0,0.43606406]
[1641083442006,0.26968654,47526.0,47525.0,1.30819126]
[1641083442410,0.45568654,47526.0,47525.0,1.30819126]
[1641083442910,0.96393402,47526.0,47525.0,1.30819126]
[1641083443712,0.77793402,47526.0,47522.0,1.42636215]
[1641083444423,0.77793402,47526.0,47523.0,1.42636215]
[1641083444424,0.35874963,47525.0,47523.0,1.42636215]
[1641083445923,0.35874963,47525.0,47521.0,0.43606406]
[1641083446125,0.18,47526.0,47522.0,0.5932089]
[1641083446423,0.184,47525.0,47522.0,0.5932089]
[1641083447123,0.184,47525.0,47521.0,0.43606406]
[1641083447425,0.54274963,47525.0,47522.0,1.42636215]
[1641083447822,0.35874963,47525.0,47522.0,1.42636215]
[1641083448423,0.54374963,47525.0,47522.0,1.42636215]
[1641083448723,0.54374963,47525.0,47523.0,1.42636215]
[1641083449824,0.35874963,47525.0,47523.0,1.42636215]
[1641083450423,0.35874963,47525.0,47521.0,0.43606406]
[1641083450424,0.35874963,47524.0,47521.0,1.86242621]
[1641083451825,0.53874963,47523.0,47521.0,1.86242621]
[1641083452431,0.54274963,47523.0,47521.0,1.86242621]
[1641083452926,0.54274963,47523.0,47521.0,0.43606406]
[1641083453431,0.54274963,47523.0,47521.0,1.86242621]
[1641083453632,0.184,47523.0,47521.0,1.86242621]
[1641083453836,0.14033567,47522.0,47521.0,1.86242621]
[1641083454436,0.32333567,47522.0,47521.0,1.86242621]
[1641083454838,0.32333567,47522.0,47521.0,1.98056687]
[1641083455640,0.32333567,47522.0,47521.0,0.55420472]
[1641083456538,0.50533567,47522.0,47521.0,0.56616171]
[1641083457739,0.32233567,47522.0,47521.0,0.56616171]
[1641083457941,0.14033567,47522.0,47521.0,0.56616171]
[1641083458539,0.32433567,47522.0,47521.0,0.56616171]
[1641083459041,0.32433567,47522.0,47521.0,0.55420472]
[1641083459842,0.14033567,47522.0,47521.0,0.55420472]
[1641083460542,0.32133567,47522.0,47521.0,1.97967853]
[1641083461648,0.32133567,47522.0,47521.0,1.99163546]
[1641083461847,0.14033567,47522.0,47521.0,1.99163546]
[1641083462346,0.14033567,47522.0,47521.0,0.56616165]
[1641083462550,0.32533567,47522.0,47521.0,0.56616165]
[1641083462948,0.185,47522.0,47521.0,0.838613]
[1641083463249,0.35752242,47527.0,47522.0,1.104]
[1641083463449,0.35562242,47527.0,47526.0,1.285]
[1641083463652,1.18950921,47530.0,47527.0,0.06518344]
[1641083463848,1.18950921,47530.0,47529.0,0.8]
[1641083464050,0.59787269,47530.0,47529.0,0.8]
[1641083464448,0.59787269,47530.0,47529.0,0.991]
[1641083464949,1.18950921,47533.0,47529.0,0.991]
[1641083465149,1.18950921,47533.0,47529.0,1.42706406]
[1641083465351,1.27918895,47535.0,47529.0,1.42706406]
[1641083465753,1.27918895,47535.0,47529.0,1.23606406]
[1641083466149,0.08967974,47535.0,47532.0,1.30452137]
[1641083466451,0.27567974,47535.0,47532.0,1.30452137]
[1641083467652,0.08967974,47534.0,47532.0,1.30452137]
[1641083468454,0.18,47533.0,47532.0,0.081]
[1641083468858,0.18,47533.0,47531.0,1.30452137]
[1641083469457,0.65162559,47533.0,47532.0,0.43606406]
[1641083470057,0.79196126,47533.0,47532.0,0.43606406]
[1641083470256,0.70228152,47533.0,47532.0,0.43606406]
[1641083470457,2.19794532,47533.0,47526.0,1.30452137]
[1641083470759,0.18,47527.0,47526.0,1.30452137]
[1641083471158,0.18,47527.0,47525.0,1.30452137]
[1641083472361,0.83713558,47526.0,47524.0,1.30452137]
[1641083472961,0.83713558,47525.0,47524.0,1.30452137]
[1641083473962,0.59776493,47526.0,47522.0,1.30452137]
[1641083474561,0.78076493,47526.0,47522.0,1.30452137]
[1641083474763,0.54164739,47526.0,47523.0,1.4240926]
[1641083475364,0.54164739,47526.0,47524.0,0.11957123]
[1641083475768,0.35864739,47526.0,47524.0,1.30452137]
[1641083476466,0.186,47526.0,47525.0,1.30452137]
[1641083477883,0.35864739,47527.0,47525.0,1.30452137]
[1641083478084,0.35864739,47527.0,47524.0,1.30452137]
[1641083478484,0.54664739,47527.0,47524.0,1.30452137]
[1641083479384,0.35864739,47526.0,47524.0,1.30452137]
[1641083479984,0.35864739,47526.0,47525.0,0.11956809]
[1641083480585,0.187,47526.0,47525.0,0.11956809]
[1641083481288,0.187,47526.0,47525.0,1.42408946]
[1641083481685,0.187,47526.0,47525.0,1.30452137]
[1641083481987,0.53864739,47527.0,47525.0,1.30452137]
[1641083482484,0.72564739,47527.0,47525.0,1.30452137]
[1641083482784,0.367,47527.0,47525.0,1.30452137]
[1641083483186,0.367,47527.0,47523.0,1.30452137]
[1641083483384,0.96476493,47527.0,47523.0,1.30452137]
[1641083483784,0.77776493,47527.0,47523.0,1.30452137]
[1641083483986,0.009794,47526.0,47523.0,1.30452137]
[1641083484286,0.14033567,47524.0,47523.0,1.30452137]
[1641083485085,0.38346231,47524.0,47523.0,1.30452137]
[1641083485784,0.38346231,47524.0,47520.0,1.30452137]
[1641083485988,0.98122724,47524.0,47520.0,1.30452137]
[1641083486487,1.16822724,47524.0,47520.0,1.30452137]
[1641083486690,1.16822724,47524.0,47515.0,1.42342029]
[1641083486691,0.59776493,47522.0,47518.0,1.30452137]
[1641083487694,0.35868064,47521.0,47519.0,1.30452137]
[1641083488496,0.54368064,47521.0,47518.0,1.30452137]
[1641083489298,0.54368064,47521.0,47519.0,1.30452137]
[1641083489495,0.54368064,47521.0,47519.0,1.42409917]
[1641083489696,0.54368064,47521.0,47520.0,0.1195778]
[1641083489896,0.35868064,47521.0,47520.0,0.1195778]
[1641083490498,0.187,47521.0,47520.0,1.42409917]
[1641083491099,0.54568064,47521.0,47520.0,0.59083983]
[1641083492499,0.73068064,47521.0,47520.0,0.59083983]
[1641083492799,0.74047464,47521.0,47518.0,1.42342029]
[1641083493605,0.381794,47521.0,47518.0,1.42342029]
[1641083493806,0.83713558,47519.0,47517.0,1.31004155]
[1641083494103,0.14033567,47518.0,47517.0,1.31004155]
[1641083494606,0.32333567,47518.0,47517.0,1.42962883]
[1641083495305,0.32333567,47518.0,47517.0,1.31004155]
[1641083495506,0.92138847,47518.0,47517.0,1.31004155]
[1641083496004,0.73838847,47518.0,47517.0,1.31004155]
[1641083496605,0.92138847,47518.0,47517.0,1.31004155]
[1641083498004,0.91838847,47518.0,47517.0,1.31004155]
[1641083498606,1.10238847,47518.0,47517.0,1.31004155]
[1641083498808,0.50433567,47518.0,47517.0,1.31004155]
[1641083499306,0.50433567,47518.0,47514.0,1.31004155]
[1641083499307,1.70024466,47518.0,47514.0,1.31004155]
[1641083499508,0.18,47515.0,47514.0,1.31004155]
[1641083500209,0.14033567,47515.0,47511.0,0.83287146]
[1641083500408,0.32033567,47515.0,47513.0,0.59490818]
[1641083500608,0.50233567,47515.0,47513.0,0.59490818]
[1641083500910,0.32233567,47515.0,47513.0,0.59490818]
[1641083501710,0.32233567,47515.0,47512.0,0.59490818]
[1641083501908,0.14033567,47515.0,47512.0,0.59490818]
[1641083502109,0.14033567,47515.0,47514.0,0.20104583]
[1641083502309,0.35830043,47521.0,47514.0,1.00104583]
[1641083502510,0.35830043,47521.0,47514.0,0.82104583]
[1641083502712,0.35830043,47521.0,47519.0,0.18]
[1641083503112,0.35830043,47521.0,47520.0,0.02104244]
[1641083503334,0.59716738,47522.0,47520.0,0.14063065]
[1641083503616,0.59716738,47522.0,47520.0,0.02104244]
[1641083503817,0.59716738,47522.0,47521.0,0.11958821]
[1641083504018,0.59716738,47522.0,47521.0,1.13245967]
[1641083504217,2.57256738,47532.0,47521.0,0.83287146]
[1641083504418,0.14033567,47530.0,47521.0,0.83287146]
[1641083504718,0.185,47522.0,47521.0,0.83287146]
[1641083505820,0.185,47522.0,47520.0,0.97320713]
[1641083506020,0.14033567,47530.0,47520.0,0.97320713]
[1641083506418,0.32033567,47530.0,47520.0,0.97320713]
[1641083506619,0.18,47525.0,47520.0,0.97320713]
[1641083506818,0.18,47523.0,47520.0,0.97320713]
[1641083507020,0.18,47528.0,47520.0,0.97320713]
[1641083507218,0.18,47528.0,47520.0,0.14033567]
[1641083508221,0.18,47525.0,47520.0,0.14033567]
[1641083509022,0.18,47525.0,47515.0,1.21086221]
[1641083509023,0.18,47525.0,47515.0,0.8539173]
[1641083509224,0.18,47519.0,47515.0,0.83287146]
[1641083509424,0.18,47516.0,47515.0,0.83287146]
[1641083509724,0.18,47516.0,47513.0,1.18981637]
[1641083509925,1.113794,47515.0,47513.0,1.18981637]
[1641083510224,1.113794,47515.0,47512.0,0.82967394]
[1641083510425,1.42433567,47513.0,47512.0,0.82967394]
[1641083510726,1.42433567,47513.0,47507.0,1.31004155]
[1641083510935,0.18,47508.0,47507.0,1.31004155]
[1641083511333,0.18,47508.0,47502.0,0.14033567]
[1641083511532,0.18,47505.0,47502.0,0.14033567]
[1641083512635,0.366,47505.0,47502.0,0.14033567]
[1641083512833,0.186,47505.0,47502.0,0.14033567]
[1641083513035,0.366,47505.0,47502.0,0.14033567]
[1641083513442,0.186,47505.0,47502.0,0.14033567]
[1641083513645,0.366,47505.0,47502.0,0.14033567]
[1641083514044,0.18,47505.0,47502.0,0.14033567]
[1641083514445,0.08741997,47509.0,47502.0,0.14033567]
[1641083514746,0.367,47505.0,47502.0,0.14033567]
[1641083516050,0.18,47505.0,47502.0,0.14033567]
[1641083516653,0.367,47505.0,47502.0,0.14033567]
[1641083518556,0.25593254,47504.0,47502.0,0.14033567]
[1641083519354,0.25793778,47503.0,47502.0,0.14033567]
[1641083519753,0.25793778,47503.0,47502.0,1.45037722]
[1641083519954,0.85510516,47503.0,47502.0,1.45037722]
[1641083520754,1.04510516,47503.0,47502.0,1.45037722]
[1641083521555,0.5376745,47503.0,47502.0,1.45037722]
[1641083521957,0.3476745,47503.0,47502.0,1.45037722]
[1641083522357,0.08973672,47503.0,47502.0,1.07746744]
[1641083522759,0.27373672,47503.0,47502.0,1.07746744]
[1641083523357,0.27373672,47503.0,47498.0,1.42342029]
[1641083523558,0.27373672,47503.0,47497.0,0.14033567]
[1641083524359,0.35896005,47499.0,47497.0,1.56375596]
[1641083525661,0.35896005,47499.0,47497.0,0.14033567]
[1641083526463,0.59826675,47500.0,47497.0,0.14033567]
[1641083526464,0.35896005,47498.0,47497.0,0.14033567]
[1641083528768,0.54796005,47498.0,47497.0,0.14033567]
[1641083528967,0.189,47498.0,47497.0,0.14033567]
[1641083530068,0.42105025,47501.0,47497.0,0.14033567]
[1641083530669,0.60905025,47501.0,47497.0,0.14033567]
[1641083531970,0.42105025,47501.0,47497.0,0.14033567]
[1641083532671,0.60805025,47501.0,47497.0,0.14033567]
[1641083532870,0.60805025,47501.0,47496.0,0.61527826]
[1641083533270,0.60805025,47501.0,47497.0,0.14033567]
[1641083534172,0.42105025,47501.0,47497.0,0.14033567]
[1641083534675,0.60805025,47501.0,47497.0,0.14033567]
[1641083536176,0.42105025,47501.0,47497.0,0.14033567]
[1641083536775,0.60905025,47501.0,47497.0,0.14033567]
[1641083537977,0.42105025,47501.0,47497.0,0.14033567]
[1641083538678,0.61005025,47501.0,47497.0,0.73455985]
[1641083540080,0.42105025,47501.0,47497.0,0.73455985]
[1641083540681,0.61005025,47501.0,47497.0,0.73455985]
[1641083541281,0.61005025,47501.0,47497.0,0.79165985]
[1641083542083,0.42105025,47501.0,47497.0,0.79165985]
[1641083542282,0.42105025,47501.0,47498.0,0.8510857]
[1641083542682,0.61005025,47501.0,47498.0,0.8510857]
[1641083542883,0.61005025,47501.0,47497.0,0.79165985]
[1641083544188,0.42105025,47501.0,47497.0,0.79165985]
[1641083544385,0.42105025,47501.0,47498.0,0.85113529]
[1641083544788,0.61005025,47501.0,47498.0,0.85113529]
[1641083544988,0.35896005,47511.0,47500.0,0.18]
[1641083545194,0.64835875,47516.0,47510.0,0.20104561]
[1641083545390,0.03735875,47516.0,47515.0,0.32033567]
[1641083545591,1.51632995,47519.0,47515.0,0.32033567]
[1641083545789,1.51632995,47519.0,47518.0,0.20104026]
[1641083545993,1.51632995,47519.0,47518.0,0.28602459]
[1641083545994,0.97802995,47519.0,47518.0,0.28602459]
[1641083546391,0.97802995,47519.0,47518.0,0.28702459]
[1641083546793,0.97802995,47519.0,47518.0,0.48102459]
[1641083547001,0.90602995,47519.0,47518.0,0.48102459]
[1641083547200,1.67066426,47530.0,47518.0,0.48102459]
[1641083547401,0.14033567,47532.0,47525.0,0.14033567]
[1641083547601,0.14033567,47532.0,47530.0,0.001]
[1641083547800,0.14033567,47532.0,47531.0,0.001]
[1641083548702,0.25133567,47532.0,47531.0,0.186]
[1641083549803,0.25133567,47532.0,47531.0,0.81946704]
[1641083550004,0.14033567,47532.0,47531.0,0.63446704]
[1641083550705,0.32033567,47532.0,47531.0,0.81746704]
[1641083552206,0.14033567,47532.0,47531.0,0.63446704]
[1641083552808,0.32033567,47532.0,47531.0,0.81746704]
[1641083554010,0.14033567,47532.0,47531.0,0.63446704]
[1641083554913,0.32133567,47532.0,47531.0,1.41027026]
[1641083555512,0.32133567,47532.0,47531.0,0.77680322]
[1641083555913,0.32133567,47532.0,47531.0,0.184]
[1641083556213,0.14033567,47532.0,47531.0,0.001]
[1641083556712,0.14033567,47532.0,47531.0,0.184]
[1641083556914,0.32033567,47532.0,47531.0,0.184]
[1641083557920,0.42067434,47543.0,47531.0,1.164]
[1641083558117,0.42067434,47543.0,47542.0,0.18]
[1641083558316,0.02,47550.0,47542.0,0.20203158]
[1641083558514,0.02,47550.0,47547.0,0.181]
[1641083558714,0.02,47550.0,47549.0,0.001]
[1641083558915,0.02,47550.0,47549.0,0.181]
[1641083559316,0.02,47550.0,47549.0,0.20202767]
[1641083559515,0.02,47550.0,47549.0,0.34236334]
[1641083559718,0.02,47550.0,47549.0,0.16236334]
[1641083560115,0.2,47550.0,47549.0,0.14033567]
[1641083560317,0.2,47550.0,47543.0,0.0210332]
[1641083560516,0.29027,47550.0,47543.0,0.0210332]
[1641083560717,0.29027,47550.0,47543.0,0.194]
[1641083562117,0.29027,47550.0,47542.0,0.14033567]
[1641083562516,0.18,47547.0,47542.0,0.14033567]
[1641083562716,0.18,47547.0,47542.0,0.33533567]
[1641083564217,0.18,47547.0,47542.0,0.14033567]
[1641083564921,0.18,47547.0,47542.0,0.33833567]
[1641083566018,0.18,47547.0,47542.0,0.14033567]
[1641083566220,0.18,47549.0,47542.0,0.14033567]
[1641083566820,0.18,47549.0,47542.0,0.33133567]
[1641083567621,0.18,47545.0,47542.0,0.33133567]
[1641083568120,0.18,47545.0,47542.0,0.14033567]
[1641083568822,0.18,47545.0,47542.0,0.33133567]
[1641083569621,0.24309882,47545.0,47542.0,0.33133567]
[1641083570025,0.24309882,47545.0,47542.0,0.14033567]
[1641083570623,0.07902469,47544.0,47542.0,3.567e-05]
[1641083570823,0.03083666,47543.0,47524.0,0.59280322]
[1641083571022,0.18,47525.0,47522.0,0.82991822]
[1641083571222,0.18,47523.0,47522.0,0.76591822]
[1641083571623,0.32033567,47523.0,47522.0,0.76591822]
[1641083572223,0.32033567,47523.0,47520.0,1.18548035]
[1641083572629,0.07862891,47522.0,47520.0,1.18548035]
[1641083572925,0.07862891,47522.0,47511.0,0.14033567]
[1641083574826,0.27162891,47522.0,47511.0,0.14033567]
[1641083575027,1.31059628,47520.0,47512.0,1.87906109]
[1641083575232,1.31059628,47520.0,47516.0,1.18548035]
[1641083575829,1.31059628,47519.0,47515.0,1.18548035]
[1641083576032,0.18,47517.0,47515.0,1.18548035]
[1641083576831,0.368,47517.0,47515.0,1.18548035]
[1641083577029,1.67859628,47517.0,47513.0,1.18548035]
[1641083577230,0.18,47514.0,47513.0,1.18548035]
[1641083577834,0.18,47514.0,47511.0,1.18548035]
[1641083578431,1.31059628,47515.0,47511.0,1.18548035]
[1641083578832,0.194,47514.0,47511.0,1.18548035]
[1641083579033,0.089722,47513.0,47511.0,1.18548035]
[1641083579933,0.23005767,47513.0,47512.0,1.18548035]
[1641083580834,0.41605767,47513.0,47512.0,1.30148035]
[1641083581232,0.41605767,47513.0,47512.0,1.87439529]
[1641083581434,0.186,47513.0,47512.0,2.37439529]
[1641083581635,1.51722402,47527.0,47518.0,0.21391787]
[1641083581936,1.45322402,47527.0,47526.0,1.40100701]
[1641083582135,0.16137296,47552.0,47526.0,2.50500701]
[1641083582136,0.6401357,47534.0,47526.0,2.50500701]
[1641083582337,0.6401357,47534.0,47530.0,0.18]
[1641083582535,0.6401357,47534.0,47533.0,0.18]
[1641083582735,0.6401357,47534.0,47530.0,0.18]
[1641083582937,0.6401357,47534.0,47530.0,0.198]
[1641083583135,0.6401357,47534.0,47533.0,0.18]
[1641083583737,0.6401357,47534.0,47533.0,0.32033567]
[1641083583937,0.02,47550.0,47533.0,0.32033567]
[1641083584137,0.029794,47550.0,47534.0,0.18]
[1641083584336,0.209794,47550.0,47539.0,0.001]
[1641083584536,0.209794,47550.0,47544.0,0.001]
[1641083584737,0.029794,47550.0,47549.0,0.001]
[1641083585539,0.209794,47550.0,47545.0,0.58987376]
[1641083585739,0.18,47546.0,47545.0,0.58987376]
[1641083586840,0.18,47546.0,47545.0,0.78087376]
[1641083587340,0.18,47546.0,47545.0,0.191]
[1641083588146,0.18,47546.0,47544.0,0.14033567]
[1641083588843,0.18,47546.0,47544.0,0.33233567]
[1641083590243,0.18,47546.0,47544.0,0.14033567]
[1641083590444,1.31334222,47548.0,47544.0,0.14033567]
[1641083590845,0.18,47545.0,47544.0,0.33633567]
[1641083591045,0.189794,47545.0,47544.0,0.33633567]
[1641083591844,0.009794,47545.0,47544.0,0.33633567]
[1641083592845,0.009794,47545.0,47544.0,0.53233567]
[1641083593146,0.009794,47545.0,47544.0,0.3173889]
[1641083594255,0.009794,47545.0,47539.0,0.14033567]
[1641083594860,0.009794,47545.0,47539.0,0.192]
[1641083595057,0.18,47542.0,47539.0,0.192]